bitfinex-derivatives/quotes_SOLF0:USTF0_20250206
["timestamp","ask_amount","ask_price","bid_price","bid_amount"]
[1738858877608,30.78804303,190.4,190.39,2.13486345]
[1738858878308,30.78804303,190.4,190.38,0.03410251]
[1738858879507,0.03706347,190.41,190.38,0.03410251]
[1738858881008,127.69294483,190.39,190.38,0.03410251]
[1738858882501,73.53986081,190.39,190.33,34.89049349]
[1738858882905,65.18016081,190.39,190.33,34.89049349]
[1738858883208,135.872086,190.4,190.36,30.78804303]
[1738858883409,0.03706347,190.41,190.39,30.78804303]
[1738858883610,80.88695829,190.44,190.43,5.2499]
[1738858883808,80.88695829,190.44,190.4,30.78804303]
[1738858884114,80.88695829,190.44,190.34,30.78804303]
[1738858884407,1.7709,190.46,190.34,30.78804303]
[1738858884611,7.02,190.46,190.36,5.2516]
[1738858884811,0.03868495,190.42,190.38,0.03735407]
[1738858885106,5.2499,190.43,190.32,5.2527]
[1738858885313,35.54804303,190.45,190.32,5.2527]
[1738858885612,5.28746089,190.42,190.38,0.0333164]
[1738858885805,5.28746089,190.42,190.32,5.2527]
[1738858887114,5.2505,190.41,190.29,5.2537]
[1738858887413,35.54804303,190.45,190.28,30.78804303]
[1738858887709,5.2504,190.42,190.29,5.2535]
[1738858888013,0.03892384,190.37,190.31,30.78804303]
[1738858889009,0.03892384,190.37,190.33,5.2524]
[1738858889210,0.03892384,190.37,190.34,30.78804303]
[1738858889515,1.7709,190.46,190.34,30.78804303]
[1738858889912,1.7709,190.46,190.3,30.78804303]
[1738858890415,5.2497,190.44,190.35,5.2519]
[1738858890618,5.2497,190.44,190.3,30.78804303]
[1738858890813,0.03532939,190.4,190.36,0.03400305]
[1738858891115,5.2483,190.49,190.38,30.78804303]
[1738858891319,2.8566,190.5,190.38,30.78804303]
[1738858891517,5.2474,190.52,190.44,5.2494]
[1738858891909,7.6413,190.58,190.38,30.78804303]
[1738858892110,5.2484,190.49,190.38,5.2511]
[1738858892315,30.78804303,190.54,190.35,30.78804303]
[1738858892517,0.03444512,190.5,190.46,0.03390451]
[1738858892820,30.78804303,190.48,190.31,2.4399]
[1738858893221,30.78804303,190.48,190.33,5.2526]
[1738858893518,30.78804303,190.51,190.33,30.78804303]
[1738858893915,30.78804303,190.48,190.31,2.4399]
[1738858894121,0.03403198,190.44,190.4,0.03507868]
[1738858894319,5.2505,190.41,190.4,0.03507868]
[1738858894719,0.03403198,190.44,190.4,0.03507868]
[1738858896331,0.03403198,190.44,190.43,5.2499]
[1738858896533,0.03403198,190.44,190.4,0.03507868]
[1738858896730,30.78804303,190.48,190.4,0.03507868]
[1738858897131,30.78804303,190.48,190.33,30.78804303]
[1738858897333,5.2489,190.47,190.4,5.2505]
[1738858897528,5.2489,190.47,190.36,30.78804303]
[1738858897529,30.78804303,190.51,190.36,30.78804303]
[1738858897832,30.78804303,190.54,190.36,30.78804303]
[1738858898035,0.04029522,190.45,190.42,0.03634324]
[1738858898228,0.04029522,190.45,190.42,5.28644324]
[1738858898425,32.58254303,190.54,190.42,5.2501]
[1738858898631,0.03476465,190.45,190.42,5.2874313]
[1738858898823,0.03476465,190.45,190.36,30.78804303]
[1738858899129,5.2477,190.52,190.44,5.2494]
[1738858899334,5.2477,190.52,190.39,30.82592828]
[1738858899627,1.7945,190.54,190.42,30.78804303]
[1738858899832,1.7945,190.54,190.44,0.04037168]
[1738858900834,5.28491618,190.51,190.45,5.2491]
[1738858901139,0.03721618,190.51,190.44,0.04037168]
[1738858901332,5.248,190.5,190.45,5.2493]
[1738858901834,0.03721618,190.51,190.45,5.2493]
[1738858902131,5.28491618,190.51,190.45,5.2493]
[1738858902332,0.03721618,190.51,190.44,5.28997168]
[1738858902634,0.03721618,190.51,190.44,0.04037168]
[1738858903432,0.03721618,190.51,190.5,5.248]
[1738858903930,0.03721618,190.51,190.49,0.03483333]
[1738858904136,0.03721618,190.51,190.43,1.762]
[1738858904533,0.03721618,190.51,190.48,0.03338774]
[1738858905528,0.03721618,190.51,190.48,5.28168774]
[1738858906438,0.03721618,190.51,190.48,0.03338774]
[1738858907039,30.78804303,190.63,190.48,30.82143077]
[1738858907333,30.78804303,190.66,190.48,30.78804303]
[1738858907526,7.0209,190.65,190.6,5.2451]
[1738858907731,5.2439,190.65,190.6,5.2451]
[1738858907928,5.2439,190.65,190.45,15.2586]
[1738858907929,1.7696,190.74,190.57,30.78804303]
[1738858908137,0.03576846,190.64,190.61,0.03508018]
[1738858908438,6.3879,190.74,190.57,30.78804303]
[1738858908837,5.2422,190.71,190.66,5.2435]
[1738858909038,6.3879,190.74,190.61,0.03901015]
[1738858909039,0.03440571,190.67,190.61,0.03901015]
[1738858909237,0.03440571,190.67,190.66,5.2436]
[1738858909430,0.03440571,190.67,190.62,0.03561289]
[1738858910443,5.27770571,190.67,190.62,0.03561289]
[1738858910743,30.78804303,190.66,190.62,0.03561289]
[1738858912446,30.78804303,190.63,190.56,21.62522845]
[1738858912945,5.2449,190.62,190.56,21.62522845]
[1738858913147,30.78804303,190.59,190.56,21.62522845]
[1738858913949,0.03362105,190.59,190.56,21.66182006]
[1738858914246,30.82166408,190.59,190.56,21.66182006]
[1738858914541,30.82166408,190.59,190.43,4.3687479]
[1738858914742,30.82166408,190.59,190.41,21.62522845]
[1738858914743,30.78804303,190.46,190.41,21.62522845]
[1738858914942,30.78804303,190.43,190.41,21.62522845]
[1738858915144,5.25,190.43,190.41,21.62522845]
[1738858915639,30.78804303,190.44,190.37,84.9418883]
[1738858915838,30.78804303,190.38,190.37,16.60079963]
[1738858916045,30.78804303,190.38,190.27,4.3305]
[1738858916545,30.82279058,190.38,190.36,0.03411639]
[1738858917146,30.82279058,190.38,190.27,4.3305]
[1738858917347,30.82279058,190.38,190.35,94.30837475]
[1738858917649,30.82279058,190.38,190.27,9.5847]
[1738858918351,30.78804303,190.33,190.31,0.03709659]
[1738858918740,30.78804303,190.38,190.31,0.03709659]
[1738858918940,0.03791329,190.34,190.31,0.03709659]
[1738858921044,30.78804303,190.44,190.31,0.03709659]
[1738858921246,5.2511,190.39,190.31,0.03709659]
[1738858921450,30.78804303,190.44,190.29,4.6965]
[1738858921845,5.2505,190.41,190.33,5.2527]
[1738858922045,1.8545,190.48,190.31,30.78804303]
[1738858922351,5.2487,190.48,190.4,5.2505]
[1738858922549,1.8962,190.54,190.37,30.78804303]
[1738858922752,1.8962,190.54,190.4,30.78804303]
[1738858922941,25.83051109,190.55,190.4,30.78804303]
[1738858923146,25.83051109,190.55,190.41,4.6823]
[1738858923545,5.2471,190.54,190.46,5.249]
[1738858923749,0.03734833,190.5,190.46,0.03312264]
[1738858923950,21.07051109,190.55,190.46,0.03312264]
[1738858924550,1.8962,190.6,190.46,30.82116567]
[1738858924753,5.2452,190.61,190.53,5.2471]
[1738858924948,21.07051109,190.65,190.56,30.78804303]
[1738858925156,0.03936414,190.59,190.56,30.78804303]
[1738858925352,21.07051109,190.65,190.59,5.2454]
[1738858925556,21.07051109,190.65,190.56,30.78804303]
[1738858925955,21.07051109,190.65,190.59,30.78804303]
[1738858926153,21.07051109,190.65,190.56,30.78804303]
[1738858926558,0.03851029,190.62,190.59,0.04019459]
[1738858929159,30.78804303,190.6,190.48,1.8404]
[1738858929356,30.78804303,190.6,190.43,30.78804303]
[1738858929554,30.78804303,190.57,190.41,2.9068]
[1738858929755,5.2478,190.51,190.41,8.1571]
[1738858930060,30.78804303,190.57,190.41,8.1571]
[1738858930258,30.78804303,190.57,190.42,5.25]
[1738858930463,30.78804303,190.57,190.41,2.9068]
[1738858930655,3.4869,190.65,190.47,0.037757]
[1738858930656,5.2484,190.49,190.47,0.037757]
[1738858931256,5.2479,190.51,190.41,2.9068]
[1738858931456,0.03753979,190.5,190.46,5.28676364]
[1738858931851,30.78804303,190.61,190.44,30.78804303]
[1738858932157,0.0376746,190.5,190.46,0.03356031]
[1738858932657,30.78804303,190.64,190.48,30.78804303]
[1738858932960,1.843,190.64,190.51,30.78804303]
[1738858933258,5.2445,190.63,190.54,30.78804303]
[1738858933462,3.6503,190.69,190.54,30.78804303]
[1738858934261,0.03909892,190.63,190.6,0.03497067]
[1738858935565,5.2447,190.62,190.6,0.03497067]
[1738858936456,0.03909892,190.63,190.6,0.03497067]
[1738858937462,30.78804303,190.61,190.6,0.03497067]
[1738858937667,30.78804303,190.58,190.48,1.8832]
[1738858937869,30.78804303,190.55,190.4,5.06]
[1738858938068,30.78804303,190.55,190.4,6.7942]
[1738858938257,5.2472,190.53,190.45,5.2493]
[1738858938562,30.78804303,190.55,190.4,37.58224303]
[1738858938865,0.03370762,190.51,190.47,0.03755536]
[1738858939360,5.248,190.5,190.47,0.03755536]
[1738858939566,0.03370762,190.51,190.47,0.03755536]
[1738858940065,5.2483,190.49,190.47,0.03755536]
[1738858940561,0.03370762,190.51,190.48,5.2483]
[1738858941561,0.03370762,190.51,190.47,0.03755536]
[1738858942170,5.2483,190.49,190.47,0.03755536]
[1738858942569,5.28150762,190.51,190.47,0.03755536]
[1738858943170,0.03370762,190.51,190.47,0.03755536]
[1738858945264,30.78804303,190.49,190.35,2.8277]
[1738858945565,30.78804303,190.46,190.36,1.05064089]
[1738858945765,30.78804303,190.43,190.36,1.05064089]
[1738858945968,5.2511,190.39,190.36,1.05064089]
[1738858946271,1.7622,190.45,190.36,1.05064089]
[1738858946569,0.04011546,190.39,190.36,1.08963299]
[1738858946869,0.04011546,190.39,190.36,0.0389921]
[1738858947070,0.04011546,190.39,190.38,5.2513]
[1738858947871,3.0037,190.48,190.42,5.25]
[1738858948270,1.7622,190.52,190.38,30.78804303]
[1738858948569,5.2483,190.49,190.43,5.2499]
[1738858948867,32.55024303,190.52,190.35,30.78804303]
[1738858949173,0.03963044,190.48,190.44,0.03378481]
[1738858949368,30.78804303,190.46,190.44,0.03378481]
[1738858949565,30.78804303,190.46,190.34,5.2523]
[1738858949770,30.78804303,190.49,190.32,30.78804303]
[1738858949971,30.78804303,190.49,190.37,5.2513]
[1738858950467,1.8841,190.48,190.37,5.2513]
[1738858950973,0.03569642,190.45,190.41,0.03319084]
[1738858951273,5.251,190.39,190.29,30.78804303]
[1738858951465,30.78804303,190.43,190.27,1.8771]
[1738858951867,5.2507,190.4,190.31,5.253]
[1738858952070,5.2507,190.4,190.27,1.8771]
[1738858952466,5.2505,190.41,190.29,30.78804303]
[1738858952673,0.04018791,190.35,190.32,0.03377169]
[1738858952872,0.04018791,190.35,190.27,1.8771]
[1738858953073,2.993,190.42,190.27,1.8771]
[1738858953373,0.0380351,190.33,190.32,0.0373772]
[1738858953574,3.51e-05,190.33,190.32,5.2902772]
[1738858953871,30.78804303,190.46,190.32,0.0373772]
[1738858954272,30.78804303,190.46,190.29,30.78804303]
[1738858954574,30.78804303,190.46,190.35,5.252]
[1738858954769,5.2513,190.38,190.36,0.03536331]
[1738858954977,0.0350625,190.39,190.36,0.03536331]
[1738858955279,30.78804303,190.43,190.36,0.03536331]
[1738858955475,5.2516,190.37,190.36,0.03536331]
[1738858955671,30.78804303,190.37,190.27,5.2543]
[1738858955873,4.6374,190.36,190.24,2.8655]
[1738858956075,5.2522,190.35,190.24,2.8655]
[1738858956271,4.6374,190.36,190.27,5.2542]
[1738858956475,4.6374,190.36,190.24,2.8655]
[1738858956977,0.0332737,190.32,190.28,0.03627633]
[1738858957179,0.0332737,190.32,190.29,30.78804303]
[1738858957378,32.66694303,190.43,190.29,30.78804303]
[1738858957379,5.2502,190.42,190.29,30.78804303]
[1738858957580,1.8789,190.43,190.32,30.78804303]
[1738858957775,33.77724303,190.49,190.32,30.78804303]
[1738858957971,1.8789,190.48,190.32,30.78804303]
[1738858958177,1.8789,190.48,190.35,30.78804303]
[1738858958780,0.03487564,190.43,190.4,0.03766652]
[1738858959079,30.78804303,190.42,190.34,5.2524]
[1738858959281,30.78804303,190.42,190.25,32.69214303]
[1738858959578,5.2516,190.37,190.32,5.2528]
[1738858959980,30.78804303,190.42,190.25,32.69214303]
[1738858960382,0.03996586,190.36,190.33,0.03514007]
[1738858961279,0.03996586,190.36,190.34,5.2522]
[1738858961676,0.03996586,190.36,190.33,0.03514007]
[1738858961980,0.03996586,190.36,190.35,5.2521]
[1738858962180,0.03996586,190.36,190.33,0.03514007]
[1738858962381,0.03996586,190.36,190.33,5.28774007]
[1738858962977,0.03996586,190.36,190.34,5.2523]
[1738858963181,0.03996586,190.36,190.33,0.03514007]
[1738858963482,5.2524,190.34,190.33,0.03514007]
[1738858964479,0.03996586,190.36,190.33,0.03514007]
[1738858965277,0.03996586,190.36,190.33,5.28774007]
[1738858965479,0.03996586,190.36,190.33,0.03514007]
[1738858966179,0.03996586,190.36,190.35,5.2521]
[1738858966483,6.586e-05,190.36,190.35,5.2521]
[1738858967174,6.586e-05,190.36,190.33,0.03514007]
[1738858969386,56.34484648,190.59,190.33,0.03514007]
[1738858969590,6.449,190.54,190.42,30.78804303]
[1738858969789,6.449,190.54,190.48,5.2483]
[1738858970082,6.449,190.54,190.39,30.78804303]
[1738858970387,5.2492,190.46,190.36,30.78804303]
[1738858970582,5.2492,190.46,190.45,0.03544128]
[1738858970783,30.78804303,190.52,190.36,30.78804303]
[1738858971084,0.03903891,190.47,190.44,0.03633128]
[1738858971280,0.03903891,190.47,190.33,1.7536]
[1738858971681,30.78804303,190.49,190.33,1.7536]
[1738858971990,30.78804303,190.49,190.3,30.78804303]
[1738858972184,5.2499,190.43,190.36,5.2517]
[1738858972384,0.03934718,190.41,190.38,0.03380997]
[1738858972686,5.28994718,190.41,190.38,0.03380997]
[1738858973278,0.03934718,190.41,190.38,0.03380997]
[1738858973988,0.03934718,190.41,190.38,5.28480997]
[1738858974890,0.03934718,190.41,190.38,0.03380997]
[1738858976997,4.718e-05,190.41,190.4,5.2507]
[1738858977194,4.718e-05,190.41,190.38,0.03380997]
[1738858977597,4.718e-05,190.41,190.39,5.251]
[1738858977798,4.718e-05,190.41,190.38,0.03380997]
[1738858979096,4.718e-05,190.41,190.38,5.28510997]
[1738858979295,4.718e-05,190.41,190.38,0.03380997]
[1738858980601,4.718e-05,190.41,190.4,5.2507]
[1738858981697,4.718e-05,190.41,190.38,0.03380997]
[1738858982399,4.718e-05,190.41,190.39,5.2509]
[1738858982599,4.718e-05,190.41,190.38,0.03380997]
[1738858983001,4.718e-05,190.41,190.4,5.2507]
[1738858984004,4.718e-05,190.41,190.4,36.03874303]
[1738858984699,21.07051109,190.53,190.4,30.78804303]
[1738858984899,21.07051109,190.53,190.44,30.78804303]
[1738858985301,21.07051109,190.53,190.41,30.78804303]
[1738858985598,30.78804303,190.52,190.37,1.9044]
[1738858985899,0.03762009,190.49,190.45,0.03727353]
[1738858986198,5.2493,190.46,190.45,0.03727353]
[1738858986501,30.82566312,190.49,190.45,0.03727353]
[1738858986699,5.28612009,190.49,190.45,0.03727353]
[1738858987001,0.03762009,190.49,190.45,0.03727353]
[1738858987198,0.03762009,190.49,190.48,5.2485]
[1738858987603,0.03762009,190.49,190.45,0.03727353]
[1738858987794,5.2486,190.48,190.45,0.03727353]
[1738858987995,0.03762009,190.49,190.45,0.03727353]
[1738858989499,0.03762009,190.49,190.45,5.28647353]
[1738858990207,0.03762009,190.49,190.48,5.2485]
[1738858990714,0.03762009,190.49,190.46,5.2488]
[1738858990905,0.03762009,190.49,190.45,0.03727353]
[1738858991310,0.03762009,190.49,190.48,5.2485]
[1738858992507,2.009e-05,190.49,190.48,5.2485]
[1738858994208,2.009e-05,190.49,190.48,10.1643]
[1738858994606,5.2444,190.63,190.59,5.2455]
[1738858994813,21.07051109,190.65,190.52,30.78804303]
[1738858995406,5.2445,190.63,190.52,30.78804303]
[1738858995907,5.2442,190.64,190.59,5.2452]
[1738858996109,5.2442,190.64,190.56,0.03756468]
[1738858996415,21.07051109,190.65,190.58,5.2458]
[1738858996416,0.03733083,190.59,190.58,5.2458]
[1738858996807,30.78804303,190.7,190.58,0.03522266]
[1738858997103,30.78804303,190.66,190.49,30.78804303]
[1738858997408,30.78804303,190.63,190.48,4.9158]
[1738858997614,30.78804303,190.69,190.52,30.78804303]
[1738858998208,0.03556944,190.62,190.59,0.03371614]
[1738858998603,30.78804303,190.69,190.59,0.03371614]
[1738858998808,0.03840292,190.62,190.6,5.245]
[1738858999007,30.78804303,190.69,190.59,0.03371614]
[1738858999507,0.03783845,190.63,190.59,0.03371614]
[1738858999707,5.2423,190.71,190.61,30.78804303]
[1738858999910,21.07051109,190.76,190.64,30.78804303]
[1738859000210,21.07051109,190.76,190.67,30.78804303]
[1738859000910,0.03478077,190.73,190.7,0.03939766]
[1738859001205,8.077e-05,190.73,190.7,0.03939766]
[1738859001605,8.077e-05,190.73,190.72,5.2419]
[1738859002511,21.07051109,190.85,190.7,61.61548372]
[1738859002711,21.07051109,190.85,190.75,30.78804303]
[1738859003611,21.07051109,190.85,190.7,30.78804303]
[1738859003808,0.04006528,190.82,190.78,0.03593049]
[1738859004511,30.78804303,190.8,190.68,1.868]
[1738859004713,5.241,190.76,190.7,5.2422]
[1738859004914,30.78804303,190.8,190.68,1.868]
[1738859005408,30.78804303,190.83,190.68,1.868]
[1738859005803,0.03523361,190.76,190.72,0.03895709]
[1738859006306,0.03523361,190.76,190.74,5.2412]
[1738859006510,0.03523361,190.76,190.72,0.03895709]
[1738859007109,30.78804303,190.74,190.72,0.03895709]
[1738859007411,30.78804303,190.74,190.59,2.8022]
[1738859007910,5.2417,190.73,190.65,5.2436]
[1738859008110,30.78804303,190.77,190.61,30.78804303]
[1738859008604,0.03848026,190.69,190.67,5.243]
[1738859008809,0.03848026,190.69,190.65,0.03488427]
[1738859009009,30.78804303,190.77,190.62,1.8133]
[1738859009205,30.78804303,190.74,190.62,1.8133]
[1738859009408,0.03858085,190.69,190.65,0.03904475]
[1738859009915,30.78804303,190.74,190.59,1.8133]
[1738859010109,0.03826873,190.69,190.65,0.03327954]
[1738859010712,6.873e-05,190.69,190.68,5.243]
[1738859011611,6.873e-05,190.69,190.68,36.03104303]
[1738859011911,6.873e-05,190.69,190.68,5.243]
[1738859012312,6.873e-05,190.69,190.68,36.03104303]
[1738859012512,4.78,190.84,190.77,5.2403]
[1738859012707,5.2385,190.85,190.72,30.78804303]
[1738859012916,1.8061,190.87,190.72,30.78804303]
[1738859013109,30.78804303,190.86,190.69,32.68224303]
[1738859013417,30.78804303,190.83,190.69,1.8942]
[1738859013617,5.2397,190.81,190.73,5.2414]
[1738859013816,0.03346281,190.79,190.76,0.03450947]
[1738859014715,0.03346281,190.79,190.66,32.57264303]
[1738859015108,30.78804303,190.83,190.69,30.78804303]
[1738859015716,30.78804303,190.83,190.66,32.57264303]
[1738859016017,30.78804303,190.8,190.63,1.821]
[1738859016220,0.03403404,190.78,190.74,0.03928004]
[1738859016419,30.78804303,190.8,190.68,5.243]
[1738859016821,30.78804303,190.77,190.74,2.596e-05]
[1738859017018,4.582,190.76,190.74,2.596e-05]
[1738859017318,4.582,190.76,190.64,5.2441]
[1738859017519,4.582,190.76,190.62,30.78804303]
[1738859017719,9.823,190.76,190.66,5.2435]
[1738859017916,4.582,190.76,190.62,30.78804303]
[1738859018318,30.82756268,190.73,190.69,0.03425246]
[1738859018517,30.82756268,190.73,190.58,30.78804303]
[1738859019018,30.78804303,190.73,190.58,30.78804303]
[1738859019321,30.78804303,190.7,190.55,30.78804303]
[1738859019518,30.78804303,190.7,190.54,2.9323]
[1738859019719,5.2436,190.67,190.6,5.245]
[1738859019921,0.03391828,190.64,190.61,0.03743304]
[1738859020818,5.2444,190.63,190.61,0.03743304]
[1738859021121,0.03391828,190.64,190.61,0.03743304]
[1738859022019,5.2445,190.63,190.61,0.03743304]
[1738859022420,5.2447,190.62,190.56,5.2462]
[1738859022613,0.03391828,190.64,190.49,2.9323]
[1738859022614,0.03391828,190.64,190.49,33.72034303]
[1738859022814,30.78804303,190.64,190.49,33.72034303]
[1738859023016,5.2455,190.59,190.49,33.72034303]
[1738859023223,30.78804303,190.64,190.49,33.72034303]
[1738859023420,1.951,190.65,190.49,33.72034303]
[1738859023621,1.951,190.65,190.59,5.2454]
[1738859024119,0.03774613,190.64,190.59,5.2454]
[1738859024326,0.03774613,190.64,190.53,30.78804303]
[1738859024627,0.03774613,190.64,190.6,0.03691104]
[1738859024924,0.03774613,190.64,190.55,5.2464]
[1738859025225,5.2454,190.6,190.49,2.9323]
[1738859025426,1.951,190.65,190.5,30.78804303]
[1738859025724,1.951,190.65,190.56,30.78804303]
[1738859026123,1.951,190.65,190.62,5.2445]
[1738859026328,0.03905709,190.62,190.59,0.03818131]
[1738859026829,5.2406,190.72,190.56,30.78804303]
[1738859027023,0.03681385,190.62,190.59,0.03751046]
[1738859027229,0.03681385,190.62,190.6,5.245]
[1738859027522,5.2438,190.66,190.6,5.245]
[1738859027726,0.0343651,190.63,190.6,5.245]
[1738859028129,30.78804303,190.7,190.58,5.2457]
[1738859028330,30.78804303,190.7,190.53,30.78804303]
[1738859028626,0.0371419,190.63,190.6,0.03525766]
[1738859028827,4.19e-05,190.63,190.62,36.03274303]
[1738859029127,5.2406,190.72,190.62,30.78804303]
[1738859029323,5.2406,190.72,190.57,4.0204]
[1738859029528,30.78804303,190.7,190.57,4.0204]
[1738859029831,30.78804303,190.7,190.6,5.245]
[1738859030025,0.0373382,190.65,190.62,0.03900696]
[1738859030626,30.78804303,190.64,190.5,4.0817]
[1738859030924,30.78804303,190.64,190.47,30.78804303]
[1738859031223,30.78804303,190.61,190.45,4.0817]
[1738859031525,35.99504303,190.7,190.41,33.89524303]
[1738859031526,5.2477,190.52,190.41,33.89524303]
[1738859031731,30.78804303,190.55,190.41,3.1072]
[1738859031925,30.78804303,190.55,190.53,0.04036253]
[1738859032121,5.248,190.51,190.44,5.2496]
[1738859033229,4.2571,190.6,190.45,30.78804303]
[1738859033423,0.03316274,190.49,190.46,0.03217587]
[1738859033730,5.246,190.58,190.51,5.2476]
[1738859034130,5.246,190.58,190.46,0.03217587]
[1738859034330,0.03513371,190.56,190.45,30.78804303]
[1738859034532,0.03513371,190.56,190.5,0.03217587]
[1738859034732,0.03513371,190.56,190.54,5.2468]
[1738859034931,3.371e-05,190.56,190.55,30.78804303]
[1738859035432,3.371e-05,190.56,190.55,5.2466]
[1738859035634,3.371e-05,190.56,190.5,0.03217587]
[1738859036427,3.371e-05,190.56,190.54,5.2468]
[1738859036931,3.371e-05,190.56,190.5,0.03217587]
[1738859037734,3.371e-05,190.56,190.55,5.2466]
[1738859038731,3.371e-05,190.56,190.5,0.03217587]
[1738859039236,3.371e-05,190.56,190.52,5.2473]
[1738859040131,3.371e-05,190.56,190.53,5.2471]
[1738859040345,3.371e-05,190.56,190.5,0.03217587]
[1738859041537,5.2466,190.55,190.5,0.03217587]
[1738859042237,3.371e-05,190.56,190.5,0.03217587]
[1738859043235,30.78804303,190.55,190.5,0.03217587]
[1738859044839,3.371e-05,190.56,190.5,0.03217587]
[1738859046038,3.371e-05,190.56,190.53,5.2471]
[1738859046237,3.371e-05,190.56,190.5,0.03217587]
[1738859047241,5.2471,190.54,190.5,0.03217587]
[1738859048032,3.371e-05,190.56,190.5,0.03217587]
[1738859048240,3.371e-05,190.56,190.52,30.78804303]
[1738859048737,3.371e-05,190.56,190.55,5.2466]
[1738859048945,19.02459493,190.74,190.53,19.02459493]
[1738859049140,7.3748,190.71,190.58,19.02459493]
[1738859049536,26.39939493,190.71,190.55,19.02459493]
[1738859049736,7.3748,190.71,190.58,19.02459493]
[1738859049940,26.31301109,190.7,190.65,5.2437]
[1738859050143,7.3748,190.71,190.58,19.02459493]
[1738859050345,0.03487189,190.66,190.62,5.28437309]
[1738859050641,0.03487189,190.66,190.62,0.03997309]
[1738859052840,0.03487189,190.66,190.65,5.2438]
[1738859053242,21.07051109,190.75,190.72,5.2417]
[1738859053438,21.07051109,190.75,190.65,30.89850653]
[1738859053633,21.07051109,190.75,190.62,30.89850653]
[1738859053838,21.07051109,190.75,190.73,5.2416]
[1738859054038,21.07051109,190.75,190.67,30.89850653]
[1738859054338,4.86291109,190.75,190.7,30.89850653]
[1738859054545,48.21245757,190.76,190.71,2.0943]
[1738859055438,34.30380653,190.83,190.69,0.03545025]
[1738859055839,5.2414,190.74,190.69,5.2426]
[1738859056043,0.03642965,190.75,190.74,0.03602582]
[1738859056542,0.03642965,190.75,190.68,2.1514]
[1738859056743,0.03642965,190.75,190.73,0.03558374]
[1738859057840,0.03642965,190.75,190.73,5.27718374]
[1738859058344,0.03642965,190.75,190.73,0.03558374]
[1738859058940,5.2414,190.74,190.73,0.03558374]
[1738859059439,0.03642965,190.75,190.66,5.2436]
[1738859059843,2.1239,190.76,190.64,3.2057]
[1738859060040,2.1239,190.76,190.68,5.243]
[1738859060741,0.03776443,190.74,190.7,0.03682048]
[1738859060941,5.2419,190.73,190.7,0.03682048]
[1738859061341,0.03776443,190.74,190.7,0.03682048]
[1738859061743,30.93627096,190.74,190.56,32.92480653]
[1738859062047,30.89850653,190.71,190.57,2.0343]
[1738859062344,30.89850653,190.71,190.6,5.2452]
[1738859062939,3.5184,190.73,190.65,5.2437]
[1738859063144,0.03839917,190.67,190.64,0.03560626]
[1738859063345,5.2435,190.67,190.64,0.03560626]
[1738859063550,3.5184,190.73,190.64,0.03560626]
[1738859063744,0.03580798,190.67,190.64,0.03560626]
[1738859063943,5.2438,190.65,190.64,0.03560626]
[1738859064444,0.03580798,190.67,190.64,0.03560626]
[1738859065749,5.2438,190.66,190.64,0.03560626]
[1738859066949,0.03580798,190.67,190.64,0.03560626]
[1738859068843,5.2436,190.66,190.64,0.03560626]
[1738859070845,0.03580798,190.67,190.64,0.03560626]
[1738859071051,5.2438,190.65,190.64,0.03560626]
[1738859071345,0.03580798,190.67,190.53,2.0263]
[1738859071550,30.89850653,190.68,190.53,2.0263]
[1738859072152,30.89850653,190.65,190.5,2.0362]
[1738859072452,0.03691163,190.62,190.59,0.02800402]
[1738859072746,5.2449,190.61,190.59,0.02800402]
[1738859072946,0.03691163,190.62,190.59,0.02800402]
[1738859074553,5.2449,190.61,190.59,0.02800402]
[1738859074746,0.03691163,190.62,190.59,0.02800402]
[1738859075150,5.2452,190.61,190.59,0.02800402]
[1738859076050,5.2452,190.6,190.59,0.02800402]
[1738859076456,5.2461,190.57,190.51,5.2476]
[1738859076655,2.0896,190.61,190.51,5.2476]
[1738859077058,5.2458,190.58,190.51,5.2476]
[1738859077257,2.0896,190.61,190.51,5.2476]
[1738859077459,2.0896,190.61,190.45,19.03366699]
[1738859077756,0.03494626,190.58,190.45,19.03366699]
[1738859078153,5.28094626,190.58,190.53,5.2471]
[1738859079358,5.28094626,190.58,190.54,5.2468]
[1738859079559,0.03494626,190.58,190.51,19.03366699]
[1738859079858,2.1168,190.67,190.62,5.2446]
[1738859080256,5.2436,190.66,190.57,19.03366699]
[1738859080455,2.1168,190.67,190.51,21.09376699]
[1738859080857,2.1168,190.67,190.54,19.03366699]
[1738859081058,2.1168,190.67,190.6,5.245]
[1738859081358,0.0379128,190.62,190.59,0.03494626]
[1738859081659,0.0379128,190.62,190.61,5.2449]
[1738859082358,5.651,190.72,190.6,19.03366699]
[1738859082558,5.2427,190.7,190.6,19.03366699]
[1738859082756,5.651,190.72,190.63,5.2442]